bitfinex/quotes_SOLUSD_20241020
["timestamp","ask_amount","ask_price","bid_price","bid_amount"]
[1729463031201,23.776884,164.54,164.45,16.86817683]
[1729463031406,4.8628,164.52,164.46,7.98102793]
[1729463031715,4.8628,164.52,164.47,3.11692793]
[1729463032428,4.8628,164.52,164.47,7.98092793]
[1729463032598,4.8628,164.52,164.47,4.864]
[1729463033328,4.8628,164.52,164.48,3.1178254]
[1729463033710,4.8628,164.52,164.47,4.864]
[1729463033910,4.8627,164.52,164.48,3.11763958]
[1729463034119,4.8627,164.52,164.47,4.864]
[1729463034318,4.8629,164.51,164.48,3.11822234]
[1729463034519,4.8629,164.51,164.46,4.8643]
[1729463034726,4.8629,164.51,164.47,3.11815833]
[1729463035006,4.8638,164.48,164.47,3.11815833]
[1729463035217,4.8638,164.48,164.43,21.05373076]
[1729463035405,12.1558,164.53,164.44,3.11957917]
[1729463035406,23.776884,164.52,164.44,3.11957917]
[1729463035613,4.8635,164.49,164.44,7.98437917]
[1729463035806,4.8635,164.49,164.45,3.11957917]
[1729463036929,41.088136,164.55,164.45,3.11957917]
[1729463036930,23.776884,164.5,164.45,3.11957917]
[1729463037237,4.864,164.48,164.42,17.0293]
[1729463037409,4.864,164.48,164.43,3.12086783]
[1729463037809,4.8642,164.47,164.43,3.12086783]
[1729463038111,23.776884,164.5,164.43,3.12086783]
[1729463038309,23.776884,164.5,164.44,3.12086783]
[1729463038505,23.776884,164.5,164.41,12.1646]
[1729463038735,4.864,164.48,164.42,7.98703048]
[1729463038917,4.864,164.48,164.43,3.12173048]
[1729463040736,4.8641,164.47,164.43,3.12173048]
[1729463040917,4.8641,164.47,164.42,4.8653]
[1729463041123,4.8641,164.47,164.43,3.1231135]
[1729463041323,34.993136,164.55,164.43,3.1231135]
[1729463041520,34.993136,164.55,164.39,16.5332]
[1729463041521,4.8628,164.52,164.46,4.8643]
[1729463041736,4.863,164.51,164.46,4.8643]
[1729463042114,4.863,164.51,164.47,3.12154345]
[1729463042335,4.863,164.51,164.46,4.8643]
[1729463042540,4.863,164.51,164.47,3.12155737]
[1729463043740,4.8623,164.53,164.48,4.8638]
[1729463044334,6.3487928,164.57,164.45,12.1616]
[1729463044335,6.3487928,164.57,164.52,4.8623]
[1729463044636,25.85479214,164.59,164.5,4.863]
[1729463044637,4.8615,164.56,164.5,4.863]
[1729463044836,4.8617,164.55,164.5,4.863]
[1729463045143,6.34776032,164.58,164.47,4.8639]
[1729463045516,12.1528,164.57,164.48,3.12175481]
[1729463045720,4.8629,164.51,164.45,4.7240482]
[1729463046031,4.8626,164.52,164.46,12.71034361]
[1729463046232,4.8626,164.52,164.47,7.84624361]
[1729463046424,4.8626,164.52,164.48,7.84624361]
[1729463046625,4.8626,164.52,164.47,4.7240482]
[1729463046826,4.8626,164.52,164.48,7.84640432]
[1729463047019,4.8626,164.52,164.48,4.7240482]
[1729463047224,4.8626,164.52,164.49,3.12224345]
[1729463048236,4.8626,164.52,164.48,4.7240482]
[1729463048428,4.8621,164.54,164.48,9.5877482]
[1729463048619,4.8621,164.54,164.49,7.98745915]
[1729463048811,4.8621,164.54,164.49,4.8634]
[1729463049239,4.8621,164.54,164.49,9.59237558]
[1729463049442,4.8621,164.54,164.5,3.12423285]
[1729463049623,4.8621,164.54,164.5,7.85320843]
[1729463049822,4.8617,164.56,164.5,9.59207558]
[1729463050023,4.8617,164.56,164.51,3.12378659]
[1729463050619,4.8617,164.56,164.51,12.71536217]
[1729463050822,4.8617,164.56,164.51,4.8626]
[1729463051130,4.8613,164.57,164.52,4.8624]
[1729463051333,4.8613,164.57,164.52,9.59137558]
[1729463051527,4.8614,164.56,164.52,4.72897558]
[1729463051921,21.7644,164.59,164.47,16.88917558]
[1729463052120,21.7644,164.59,164.48,12.7179968]
[1729463052121,4.8623,164.53,164.48,12.7179968]
[1729463052338,4.8623,164.53,164.49,3.12592866]
[1729463052637,4.8623,164.53,164.49,7.85531375]
[1729463052833,15.1721,164.59,164.5,15.28322866]
[1729463053155,4.8618,164.55,164.51,3.12592866]
[1729463053322,4.8618,164.55,164.51,7.85531375]
[1729463053648,4.8618,164.55,164.52,3.12592866]
[1729463054451,4.8618,164.55,164.52,7.85531375]
[1729463054784,28.637384,164.59,164.53,3.12592866]
[1729463054919,4.8609,164.58,164.53,12.71751375]
[1729463055120,4.8609,164.58,164.54,3.12592866]
[1729463056032,4.8609,164.58,164.53,4.8622]
[1729463056340,6.34662257,164.63,164.54,15.2818855]
[1729463056546,4.8604,164.6,164.55,3.12759379]
[1729463056725,4.8603,164.6,164.55,3.12759379]
[1729463056924,28.7105,164.65,164.55,3.12759379]
[1729463057121,28.7105,164.65,164.56,3.12759379]
[1729463057622,28.7105,164.65,164.55,4.8616]
[1729463057623,23.776884,164.64,164.55,4.8616]
[1729463057826,4.8605,164.6,164.56,3.12763361]
[1729463058029,23.776884,164.64,164.54,12.1544]
[1729463058030,4.8608,164.59,164.57,3.12763361]
[1729463058336,4.8621,164.54,164.51,16.2771]
[1729463058525,42.126884,164.64,164.52,7.9911298]
[1729463058526,4.8613,164.57,164.52,7.9911298]
[1729463058724,4.8613,164.57,164.53,3.1286298]
[1729463058944,4.8613,164.57,164.54,3.1286298]
[1729463059150,4.8613,164.57,164.52,4.8625]
[1729463059328,4.8613,164.57,164.53,3.12883351]
[1729463059530,4.8613,164.57,164.54,3.12883351]
[1729463059733,4.8613,164.57,164.55,3.12883351]
[1729463060051,4.8613,164.57,164.52,4.8625]
[1729463060245,4.8613,164.57,164.53,3.12940001]
[1729463060553,4.8608,164.59,164.54,3.12940001]
[1729463060734,4.8608,164.59,164.55,3.12940001]
[1729463060936,4.8608,164.59,164.53,4.8622]
[1729463061249,4.8608,164.59,164.54,3.12928658]
[1729463061434,4.8608,164.58,164.55,3.12928658]
[1729463061631,4.8608,164.58,164.53,4.8622]
[1729463061838,4.8608,164.58,164.54,3.12920972]
[1729463062037,4.8608,164.58,164.53,4.8622]
[1729463062038,4.8608,164.58,164.55,3.12920972]
[1729463062224,12.1491,164.62,164.51,16.2771]
[1729463062433,23.776884,164.61,164.54,4.8619]
[1729463062754,4.8604,164.6,164.55,3.12893026]
[1729463063055,4.86,164.61,164.56,7.99033026]
[1729463063233,4.86,164.61,164.57,3.12893026]
[1729463063550,4.8596,164.63,164.58,3.12772889]
[1729463063755,28.7099,164.65,164.57,4.8611]
[1729463064044,28.7099,164.65,164.58,3.12745086]
[1729463064357,16.5628,164.65,164.58,7.98815086]
[1729463064646,4.8593,164.63,164.58,4.8607]
[1729463066345,4.8585,164.66,164.6,4.86]
[1729463066525,4.859,164.64,164.58,12.1521]
[1729463066727,4.859,164.64,164.59,3.12437268]
[1729463067546,4.859,164.64,164.59,4.8605]
[1729463067746,4.859,164.64,164.6,3.12315197]
[1729463068047,4.859,164.64,164.59,4.8605]
[1729463069032,4.8588,164.65,164.59,17.0115]
[1729463071754,4.8598,164.62,164.57,21.138]
[1729463072049,23.776884,164.65,164.57,16.2771]
[1729463072229,4.8598,164.62,164.57,16.2771]
[1729463073446,23.776884,164.65,164.57,16.2771]
[1729463073648,4.859,164.64,164.58,4.8608]
[1729463074124,18.48809095,164.69,164.57,16.2771]
[1729463074327,4.8587,164.66,164.6,4.86]
[1729463074528,23.776884,164.68,164.6,4.86]
[1729463074729,4.8589,164.65,164.6,4.86]
[1729463077358,23.776884,164.66,164.59,17.0113]
[1729463077555,4.859,164.65,164.59,17.0113]
[1729463078650,23.776884,164.68,164.58,4.8608]
[1729463078854,23.776884,164.66,164.58,4.8608]
[1729463079232,4.8587,164.65,164.57,16.2771]
[1729463079550,4.8591,164.64,164.59,4.8605]
[1729463081136,23.776884,164.66,164.57,4.8611]
[1729463081458,23.776884,164.66,164.55,18.28]
[1729463081459,23.776884,164.66,164.55,12.154]
[1729463081639,4.8603,164.6,164.55,17.0157]
[1729463081833,6.34556926,164.65,164.53,16.1505]
[1729463081834,23.776884,164.63,164.53,16.1505]
[1729463082035,23.776884,164.63,164.51,18.5645]
[1729463082244,23.776884,164.63,164.49,16.1505]
[1729463082245,15.2774,164.61,164.52,3.11752267]
[1729463082463,35.927484,164.6,164.49,16.1505]
[1729463082759,4.862,164.54,164.5,3.11857903]
[1729463083131,4.862,164.54,164.49,21.0139]
[1729463083349,4.862,164.54,164.5,3.11843361]
[1729463085058,4.8624,164.53,164.5,3.11843361]
[1729463085269,4.8624,164.53,164.48,12.1595]
[1729463085561,4.8624,164.53,164.49,3.11936997]
[1729463086962,4.8624,164.53,164.48,17.0232]
[1729463088957,2.0,164.54,164.49,4.8635]
[1729463088958,6.8621,164.54,164.49,4.8635]
[1729463089132,6.8621,164.54,164.49,7.98410404]
[1729463089336,6.8621,164.54,164.49,4.8635]
[1729463090935,2.0,164.54,164.5,4.8631]
[1729463091332,2.0,164.54,164.5,7.9833025]
[1729463091737,2.0,164.54,164.5,3.1202025]
[1729463092255,6.8621,164.54,164.5,3.1202025]
[1729463092865,6.8621,164.54,164.49,17.022]
[1729463093760,23.776884,164.53,164.4,22.4034]
[1729463093941,4.8631,164.51,164.45,4.8646]
[1729463094337,2.0,164.54,164.43,0.1]
[1729463094662,2.0,164.54,164.49,4.8632]
[1729463095242,6.8621,164.54,164.49,4.8632]
[1729463096951,4.8624,164.53,164.48,17.0232]
[1729463097336,4.8626,164.52,164.47,4.864]
[1729463097535,4.8626,164.52,164.48,3.12140877]
[1729463099256,23.776884,164.53,164.48,3.12140877]
[1729463099449,4.8635,164.49,164.44,15.6419]
[1729463099651,4.8635,164.49,164.45,3.12175464]
[1729463099864,4.8635,164.49,164.43,12.1629]
[1729463099865,4.8635,164.49,164.46,2.12175464]
[1729463100049,4.8635,164.49,164.44,4.8649]
[1729463101145,35.932784,164.53,164.45,4.8646]
[1729463101346,4.8629,164.51,164.45,17.0261]
[1729463101546,4.8629,164.51,164.46,4.8643]
[1729463102268,4.8637,164.49,164.45,12.1617]
[1729463102450,23.776884,164.53,164.45,12.1617]
[1729463103551,4.8626,164.52,164.45,17.0263]
[1729463103867,23.776884,164.53,164.45,17.0263]
[1729463104169,4.8632,164.5,164.45,16.0263]
[1729463105864,23.776884,164.53,164.45,11.1617]
[1729463106080,23.776884,164.53,164.48,4.8638]
[1729463106367,2.0,164.54,164.48,4.8635]
[1729463106368,6.862,164.54,164.48,4.8635]
[1729463106749,6.862,164.54,164.49,4.8634]
[1729463107159,2.0,164.54,164.49,12.1587]
[1729463107970,2.0,164.54,164.5,4.863]
[1729463108349,2.0,164.54,164.49,12.1587]
[1729463108546,6.862,164.54,164.49,17.0221]
[1729463109272,4.8623,164.53,164.49,17.0221]
[1729463109478,4.8626,164.52,164.47,11.5281]
[1729463109655,4.8626,164.52,164.47,4.864]
[1729463110270,23.776884,164.53,164.46,12.1609]
[1729463110448,4.8634,164.5,164.46,12.1609]
[1729463111068,4.8636,164.49,164.44,4.8649]
[1729463111273,23.776884,164.53,164.43,6.262]
[1729463111476,4.8632,164.5,164.45,4.8646]
[1729463112169,4.8632,164.5,164.46,3.12235337]
[1729463112378,23.776884,164.53,164.46,15.28295337]
[1729463112564,4.8629,164.51,164.47,3.12235337]
[1729463113263,23.776884,164.53,164.47,3.12235337]
[1729463113970,4.8626,164.52,164.47,3.12235337]
[1729463114177,4.8626,164.52,164.46,17.0249]
[1729463114478,4.8626,164.52,164.47,3.12110858]
[1729463115271,23.776884,164.53,164.47,3.12110858]
[1729463115477,4.863,164.51,164.47,3.12110858]
[1729463115676,23.776884,164.53,164.47,3.12110858]
[1729463115859,4.8626,164.52,164.47,3.12110858]
[1729463116480,4.8623,164.53,164.47,3.12110858]
[1729463116674,2.0,164.54,164.49,12.1587]
[1729463116975,2.0,164.54,164.51,4.8626]
[1729463117782,2.0,164.54,164.49,15.043]
[1729463118160,2.0,164.54,164.5,3.11918783]
[1729463118960,2.0,164.54,164.49,15.043]
[1729463119477,2.0,164.54,164.5,3.11923246]
[1729463119478,6.8621,164.54,164.5,3.11923246]
[1729463120184,4.8625,164.53,164.47,17.024]
[1729463120363,4.8625,164.53,164.48,7.98333823]
[1729463120561,4.8625,164.53,164.49,3.11963823]
[1729463121657,4.8632,164.5,164.45,21.4235]
[1729463121978,4.8632,164.5,164.46,3.12062769]
[1729463122164,4.8635,164.49,164.46,3.12062769]
[1729463123162,4.8632,164.5,164.46,3.12062769]
[1729463123585,4.8632,164.5,164.38,0.1]
[1729463123586,4.8638,164.48,164.47,3.12062769]
[1729463123785,16.241,164.52,164.41,12.1645]
[1729463123786,23.776884,164.51,164.41,12.1645]
[1729463123994,12.158,164.5,164.42,3.12235042]
[1729463124185,4.8624,164.53,164.44,4.8649]
[1729463124364,4.8626,164.52,164.46,12.161]
[1729463124690,4.8626,164.52,164.47,7.98645042]
[1729463124985,4.8626,164.52,164.46,12.161]
[1729463125196,4.8629,164.51,164.47,3.12071372]
[1729463128283,4.8629,164.51,164.46,12.161]
[1729463128462,4.8629,164.51,164.47,3.12228607]
[1729463128881,2.0,164.54,164.47,3.12228607]
[1729463129191,2.0,164.54,164.5,4.8629]
[1729463130581,2.0,164.54,164.49,12.1585]
[1729463130887,2.0,164.54,164.5,3.12291757]
[1729463131372,2.0,164.54,164.5,15.28091757]
[1729463131570,2.0,164.54,164.53,4.8623]
[1729463132002,2.0,164.54,164.53,7.98471043]
[1729463135006,2.0,164.54,164.53,4.8623]
[1729463135166,2.0,164.54,164.53,7.98556992]
[1729463135369,2.0,164.54,164.53,3.12326992]
[1729463135684,2.0,164.54,164.53,7.98556992]
[1729463138394,2.0,164.54,164.53,4.8623]
[1729463138699,2.0,164.54,164.53,7.98870457]
[1729463138886,2.0,164.54,164.53,7.98867088]
[1729463140100,2.0,164.54,164.53,58.19085488]
[1729463142293,2.0,164.54,164.53,7.98867088]
[1729463149110,2.0,164.54,164.53,7.98497262]
[1729463150905,2.0,164.54,164.53,31.76185662]
[1729463152709,2.0,164.54,164.53,28.639184]
[1729463153008,2.0,164.54,164.53,51.95843244]
[1729463153811,2.0,164.54,164.53,53.17325379]
[1729463154287,2.0,164.54,164.53,50.05400535]
[1729463154492,2.0,164.54,164.53,53.17135952]
[1729463155097,2.0,164.54,164.53,59.56925952]
[1729463155516,15.8386,164.65,164.56,0.2]
[1729463155713,15.8386,164.65,164.63,4.8592]
[1729463155911,4.8581,164.68,164.63,4.8592]
[1729463156217,4.8581,164.68,164.63,4.8591]
[1729463156416,4.8581,164.68,164.64,4.859]
[1729463158404,4.8581,164.68,164.62,12.1486]
[1729463158633,4.8581,164.68,164.63,4.8593]
[1729463160025,4.8581,164.68,164.64,4.859]
[1729463160794,4.8579,164.68,164.62,12.1486]
[1729463160989,4.8584,164.67,164.62,12.1486]
[1729463162617,4.8587,164.65,164.6,4.8602]
[1729463162922,15.0763,164.69,164.59,12.1511]
[1729463162923,23.776884,164.68,164.59,12.1511]
[1729463163696,4.8593,164.64,164.59,17.0116]
[1729463165994,23.776884,164.68,164.56,17.0146]
[1729463165995,4.86,164.61,164.56,17.0146]
[1729463166604,4.86,164.61,164.57,4.8611]
[1729463168528,4.8598,164.62,164.57,4.8611]
[1729463169627,4.8598,164.62,164.53,30.7083]
[1729463169628,4.8605,164.59,164.54,4.862]
[1729463171802,12.1475,164.65,164.53,12.1557]
[1729463171803,15.5291,164.65,164.53,23.776884]
[1729463172008,15.5291,164.65,164.59,4.8604]
[1729463172326,4.8603,164.6,164.55,4.8617]
[1729463172495,4.8603,164.6,164.52,24.3131]
[1729463172496,15.5291,164.65,164.56,3.11001425]
[1729463172701,4.8604,164.6,164.5,0.1]
[1729463172928,4.8612,164.57,164.51,3.1107695]
[1729463173232,4.8612,164.57,164.52,7.9730695]
[1729463173405,4.8609,164.58,164.53,7.9730695]
[1729463173605,4.8609,164.58,164.53,4.8623]
[1729463174014,4.8605,164.59,164.54,3.1120398]
[1729463174213,4.8605,164.59,164.53,4.8621]
[1729463174506,4.8598,164.62,164.57,4.8609]
[1729463176136,15.5291,164.65,164.51,23.876884]
[1729463176137,12.1477,164.64,164.51,23.876884]
[1729463176437,4.8597,164.62,164.57,4.8608]
[1729463177000,15.5291,164.65,164.56,12.153]
[1729463177001,15.5291,164.65,164.56,17.0142]
[1729463177201,4.8601,164.61,164.56,17.0142]
[1729463178014,4.8605,164.6,164.56,12.153]
[1729463178418,27.6767,164.65,164.56,12.153]
[1729463178733,4.86,164.61,164.56,17.0143]
[1729463179025,4.86,164.61,164.56,15.0143]
[1729463179434,4.8603,164.6,164.55,4.8617]
[1729463179813,4.8601,164.61,164.56,4.8612]
[1729463180630,4.8601,164.61,164.55,12.154]
[1729463180821,4.8601,164.61,164.56,7.97533835]
[1729463181033,15.5291,164.65,164.52,23.876884]
[1729463181326,20.388,164.65,164.59,4.8603]
[1729463181527,20.388,164.65,164.54,22.6155]
[1729463181528,20.388,164.65,164.57,23.776884]
[1729463181733,4.8592,164.64,164.58,20.12501518]
[1729463181919,4.8592,164.64,164.59,7.97341518]
[1729463182130,4.8592,164.64,164.59,4.8604]
[1729463182444,4.8592,164.64,164.57,23.776884]
[1729463182445,15.5291,164.65,164.56,4.8613]
[1729463182624,15.5291,164.65,164.57,3.1134712]
[1729463182825,4.86,164.61,164.57,3.1134712]
[1729463183137,4.86,164.61,164.56,4.8613]
[1729463183449,4.8595,164.63,164.57,7.97368784]
[1729463183742,4.8595,164.63,164.57,4.8609]
[1729463184239,4.8595,164.63,164.58,3.11274818]
[1729463184615,4.8601,164.61,164.58,3.11274818]
[1729463184814,4.8601,164.61,164.55,17.0155]
[1729463185042,4.8603,164.6,164.56,3.11326801]
[1729463185243,4.8603,164.6,164.57,3.11326801]
[1729463185443,4.86,164.61,164.55,17.0155]
[1729463185650,4.8605,164.6,164.56,3.11481395]
[1729463186349,4.8605,164.6,164.55,12.1541]
[1729463186520,4.8605,164.6,164.56,3.11601089]
[1729463188338,4.86,164.61,164.56,7.97741089]
[1729463188545,27.6766,164.65,164.57,3.11601089]
[1729463188546,4.8605,164.59,164.57,3.11601089]
[1729463188849,4.8605,164.59,164.54,4.8617]
[1729463189029,4.8605,164.59,164.55,3.1183693]
[1729463189229,4.8605,164.59,164.56,3.1183693]
[1729463189431,4.8605,164.59,164.57,3.1183693]
[1729463189735,4.8605,164.59,164.54,4.8617]
[1729463189933,4.8605,164.59,164.55,3.11926391]
[1729463190138,4.8605,164.59,164.56,3.11926391]
[1729463190340,4.8605,164.59,164.57,3.11926391]
[1729463190540,4.8605,164.59,164.54,4.8617]
[1729463190754,4.8605,164.59,164.55,3.12008892]
[1729463191049,4.8605,164.59,164.54,4.8617]
[1729463191050,4.8605,164.59,164.56,3.12008892]
[1729463191259,4.8605,164.59,164.57,3.12008892]
[1729463191428,4.8605,164.59,164.54,4.8617]
[1729463191628,4.8605,164.59,164.55,3.12121156]
[1729463191859,4.8605,164.59,164.56,3.12121156]
[1729463192033,4.8605,164.59,164.57,3.12121156]
[1729463192228,4.8605,164.59,164.54,4.8617]
[1729463192457,4.8605,164.59,164.55,3.12111915]
[1729463192661,4.8605,164.59,164.56,3.12111915]
[1729463192958,4.8605,164.59,164.57,3.12111915]
[1729463193156,4.8605,164.59,164.54,4.8617]
[1729463193359,4.8605,164.59,164.55,3.120917]
[1729463193681,4.8605,164.59,164.54,4.8617]
[1729463193682,4.8605,164.59,164.56,3.120917]
[1729463193863,4.8605,164.59,164.57,3.120917]
[1729463194065,4.8605,164.59,164.54,4.8617]
[1729463194237,4.8605,164.59,164.55,3.12075694]
[1729463194436,4.8605,164.59,164.54,4.8617]
[1729463194437,4.8605,164.59,164.56,3.12075694]
[1729463194637,4.8605,164.59,164.57,3.12075694]
[1729463194843,4.8605,164.59,164.54,4.8617]
[1729463195047,4.8605,164.59,164.55,3.1206075]
[1729463195337,4.8605,164.59,164.56,3.1206075]
[1729463195547,4.8605,164.59,164.57,3.1206075]
[1729463195854,4.8605,164.59,164.54,4.8617]
[1729463196057,4.8605,164.59,164.55,7.98245312]
[1729463196239,12.1477,164.64,164.56,3.12075312]
[1729463196240,4.8603,164.6,164.56,3.12075312]
[1729463196438,4.8603,164.6,164.57,3.12075312]
[1729463196643,4.8603,164.6,164.58,3.12075312]
[1729463196932,12.1477,164.64,164.55,4.8617]
[1729463196933,4.8599,164.62,164.59,3.11983625]
[1729463197133,4.8599,164.62,164.6,3.11955144]
[1729463197363,4.8599,164.62,164.58,4.8608]
[1729463197562,4.8599,164.62,164.59,3.11942796]
[1729463197756,4.8599,164.62,164.6,3.11942796]
[1729463197938,4.8599,164.62,164.58,4.8608]
[1729463198267,4.8594,164.63,164.59,3.11939098]
[1729463198450,4.8597,164.62,164.6,3.11939098]
[1729463198651,4.8597,164.62,164.58,4.8608]
[1729463198851,4.8597,164.62,164.59,3.11900531]
[1729463199066,4.8597,164.62,164.6,3.11900531]
[1729463199356,4.8597,164.62,164.56,17.0148]
[1729463199564,4.8599,164.61,164.57,3.1194468]
[1729463199755,4.8599,164.61,164.58,3.1194468]
[1729463199953,4.8599,164.61,164.59,3.1194468]
[1729463200156,4.8599,164.61,164.6,3.1194468]
[1729463200347,4.8599,164.61,164.57,3.1194468]
[1729463200552,4.8599,164.61,164.58,3.1194468]
[1729463200853,4.8605,164.6,164.59,3.11969175]
[1729463201039,15.5291,164.65,164.56,3.11969175]
[1729463201239,4.8608,164.58,164.57,3.11969175]
[1729463201758,4.8606,164.59,164.57,3.11969175]
[1729463201946,4.8606,164.59,164.54,4.862]
[1729463202143,4.8606,164.59,164.55,3.12054393]
[1729463202464,4.8606,164.59,164.56,3.12054393]
[1729463202667,4.8606,164.59,164.57,3.12054393]
[1729463202846,4.8606,164.59,164.54,4.862]
[1729463203048,4.8606,164.59,164.55,3.12047607]
[1729463203244,4.8606,164.59,164.56,3.12047607]
[1729463203446,4.8606,164.59,164.57,3.12047607]
[1729463203678,4.8606,164.59,164.54,4.862]
[1729463203878,4.8606,164.59,164.55,3.12044706]
[1729463204063,4.8606,164.59,164.54,4.862]
[1729463204381,4.8606,164.59,164.55,3.12058947]
[1729463204547,4.8606,164.59,164.56,3.12058947]
[1729463204748,4.8606,164.59,164.57,3.12058947]
[1729463204958,4.8606,164.59,164.54,4.862]
[1729463205166,4.8606,164.59,164.55,3.12070032]
[1729463205360,4.8606,164.59,164.56,3.12070032]
[1729463205678,4.8606,164.59,164.57,3.12070032]
[1729463205859,4.8606,164.59,164.54,4.862]
[1729463206063,4.8606,164.59,164.55,3.12071408]
[1729463206281,4.8606,164.59,164.56,3.12071408]
[1729463206570,4.8606,164.59,164.57,3.12071408]
[1729463206868,4.8606,164.59,164.54,4.862]
[1729463207073,4.8606,164.59,164.55,3.12065141]
[1729463207384,4.8606,164.59,164.54,4.862]
[1729463207676,4.8606,164.59,164.55,3.12049034]
[1729463207856,4.8606,164.59,164.56,3.12049034]
[1729463208050,4.8606,164.59,164.57,3.12049034]
[1729463208251,4.8606,164.59,164.54,4.862]
[1729463208447,4.8606,164.59,164.55,3.12054325]
[1729463208654,4.8606,164.59,164.56,3.12054325]
[1729463208960,4.8596,164.62,164.57,3.12054325]
[1729463209160,4.8608,164.59,164.53,17.0179]
[1729463209364,4.8608,164.59,164.54,3.12068504]
[1729463209662,4.8608,164.59,164.55,3.12068504]
[1729463209875,4.8608,164.59,164.56,3.12068504]
[1729463210177,4.8608,164.59,164.57,3.12068504]
[1729463210356,4.8608,164.59,164.53,17.0179]
[1729463210563,4.8608,164.59,164.54,3.12042118]
[1729463210751,4.8608,164.59,164.55,3.12042118]
[1729463211062,23.776884,164.61,164.56,3.12042118]
[1729463211256,4.8622,164.54,164.49,23.0456]
[1729463211460,4.8622,164.54,164.5,3.12135885]
[1729463211648,4.8622,164.54,164.51,3.12135885]
[1729463211849,16.1148,164.59,164.52,7.98385885]
[1729463211850,4.8612,164.57,164.52,7.98385885]
[1729463212050,16.1148,164.59,164.53,3.12135885]
[1729463212348,4.8615,164.56,164.54,3.12135885]
[1729463212545,4.8615,164.56,164.55,3.12135885]
[1729463212752,4.8615,164.56,164.51,17.0197]
[1729463212951,4.8615,164.56,164.52,3.12126909]
[1729463213165,4.8612,164.57,164.53,3.12126909]
[1729463213360,4.8612,164.57,164.54,3.12126909]
[1729463213561,4.8612,164.57,164.55,3.12126909]
[1729463213771,4.8612,164.57,164.53,4.8622]
[1729463213958,4.8612,164.57,164.54,3.12035803]
[1729463214156,46.74296525,164.63,164.55,3.12035803]
[1729463214459,46.74296525,164.63,164.51,0.1]
[1729463214460,22.44606525,164.63,164.51,0.1]
[1729463214650,4.8596,164.62,164.57,4.861]
[1729463214851,4.8596,164.62,164.58,3.1197825]
[1729463215047,4.8596,164.62,164.59,3.1197825]
[1729463215269,4.8596,164.62,164.6,3.1197825]
[1729463215487,4.8596,164.62,164.57,4.861]
[1729463215779,4.8584,164.66,164.59,23.776884]
[1729463216087,4.8584,164.66,164.61,4.8598]
[1729463216374,4.8582,164.67,164.62,7.97807407]
[1729463216578,4.8582,164.67,164.63,3.11847407]
[1729463216778,4.8582,164.67,164.64,3.11847407]
[1729463216954,4.8582,164.67,164.62,4.8596]
[1729463217149,4.8582,164.67,164.63,3.11665114]
[1729463217457,4.8582,164.67,164.64,3.11665114]
[1729463217659,4.8582,164.67,164.62,4.8596]
[1729463217876,4.8582,164.67,164.63,3.11650683]
[1729463218575,4.8582,164.67,164.61,4.8599]
[1729463218874,4.8582,164.67,164.62,3.11655621]
[1729463219173,4.8582,164.67,164.63,3.11655621]
[1729463219369,4.8582,164.67,164.61,4.8599]
[1729463219677,4.8582,164.67,164.62,3.11649402]
[1729463219884,4.8582,164.67,164.63,3.11649402]
[1729463220083,4.8582,164.67,164.61,4.8599]
[1729463220376,23.776884,164.68,164.62,3.11656476]
[1729463220586,15.8163,164.71,164.56,6.635]
[1729463220783,15.8163,164.71,164.57,3.11744517]
[1729463220967,4.8579,164.68,164.63,4.8591]
[1729463221165,4.8575,164.7,164.64,4.8589]
[1729463221388,15.8163,164.71,164.63,4.8593]
[1729463221676,4.8578,164.69,164.63,4.8591]
[1729463222276,4.8574,164.7,164.64,4.8588]
[1729463222777,4.8574,164.7,164.63,12.1484]
[1729463222980,4.8577,164.69,164.64,7.97512259]